Cogmind - Beta 14 *** ADVENTURER MODE // 2024.08.10 @ 23:26:34 Player: Ms. V3-11A Result: Destroyed by P-70 Sage with High-powered Shock Rifle Performance ------------- Evolutions (6) 3000 Regions Visited (15) 3000 Robots Destroyed (170) 850 Value Destroyed (6011) 6011 Prototype IDs (35) 700 Alien Tech Used (0) 0 Bonus (1762) 1762 TOTAL SCORE: 15323 Bonus ------- High Alert Combat Kills 11 Follower Combat Kills 1065 Registered with UFD 300 Built Enhanced Grunts 300 A7 Reached Mainframe 300 Friendly Fire -214 Cogmind --------- Core Integrity 0/1150 Matter 289/300 Energy 100/100 System Corruption 21% Temperature Cool (0) Movement Core (50) Location -4/Upper Caves Parts ------- > --- POWER (2) -------- (None) > --- PROPULSION (4) --- (None) > --- UTILITY (11) ----- Machine Analyzer Hacking Suite > --- WEAPON (2) ------- (None) > --- INVENTORY (5) ---- Large Storage Unit Advanced Energy Well (500) Compact Matter Pod (150) Improved Recalibrator Peak State ------------ > --- POWER ------------ Reinforced Fission Core Antimatter Reactor > --- PROPULSION ------- Centrium Heavy Treads Centrium Heavy Treads > --- UTILITY ---------- Large Storage Unit Machine Analyzer Improved Target Analyzer Core Analyzer Transmission Jammer Layered Medium Armor Plating Improved Focal Shield Improved Force Field Hacking Suite A0-MCA's Component Scanner Improved Recalibrator > --- WEAPON ----------- Phase Gun HERF Cannon > --- INVENTORY -------- Centrium Heavy Treads Large Storage Unit Advanced Energy Well Compact Matter Pod Tesla Rifle Field Laser Long-range Proton Cannon CPS Tube [Rating: 120] Favorites ----------- Power Heavy Deuterium Engine Engine Heavy Deuterium Engine Power Core Enhanced Nuclear Core Reactor Particle Reactor Propulsion Armored Treads Treads Armored Treads Leg Aluminum Leg Utility Hacking Suite Device Improved Heat Sink Storage High-capacity Storage Unit Processor Machine Analyzer Hackware Hacking Suite Protection Improved Light Armor Plating Weapon Cooled Particle Cannon Energy Gun Improved Spread Laser Energy Cannon Cooled Particle Cannon Ballistic Gun Assault Rifle Ballistic Cannon Assault Cannon Launcher Improved Proton Missile Launcher Special Weapon CPS Tube Build | -11 -10 -9 -8 -7 -7 -7 -7 -5 -5 -5 -5 -4 -4 -4 -4 ------- Run | Yrd Mat Mat Mat Fac Sto Rec Scr Fac Ext Cet Arc Fac Was Fac Upp Slots Evolved 12 | . . 2 2 2 . . . 4 . . . 2 . . . Power 1 | . . . . . . . . 1 . . . . . . . Propulsion 2 | . . . . . . . . 1 . . . 1 . . . Utility 9 | . . 2 2 2 . . . 2 . . . 1 . . . Weapon . | . . . . . . . . . . . . . . . . Parts Attached 163 | 2 4 17 17 15 16 . 5 34 21 3 6 1 2 19 1 Power 17 | . . 2 2 1 1 . 2 3 3 . 1 . . 2 . Engine 10 | . . 2 2 1 . . 2 2 1 . . . . . . Core 5 | . . . . . 1 . . 1 2 . . . . 1 . Reactor 2 | . . . . . . . . . . . 1 . . 1 . Propulsion 34 | 2 . 3 6 3 . . . 11 4 2 1 1 . 1 . Treads 34 | 2 . 3 6 3 . . . 11 4 2 1 1 . 1 . Leg . | . . . . . . . . . . . . . . . . Wheel . | . . . . . . . . . . . . . . . . Hover . | . . . . . . . . . . . . . . . . Flight . | . . . . . . . . . . . . . . . . Utility 58 | . 4 7 6 7 7 . 3 11 4 1 . . . 8 . Device 21 | . 1 3 3 3 2 . 1 3 1 . . . . 4 . Storage 4 | . 2 . . . . . . . 1 . . . . 1 . Processor 10 | . . . 1 1 2 . . 4 . . . . . 2 . Hackware 4 | . . 1 . 1 . . 1 1 . . . . . . . Protection 19 | . 1 3 2 2 3 . 1 3 2 1 . . . 1 . Artifact . | . . . . . . . . . . . . . . . . Weapon 54 | . . 5 3 4 8 . . 9 10 . 4 . 2 8 1 Energy Gun 14 | . . 3 1 1 4 . . . . . 1 . . 4 . Energy Cannon 26 | . . 2 . 1 3 . . 6 9 . 1 . . 4 . Ballistic Gun 9 | . . . . 1 1 . . 2 1 . 2 . 2 . . Ballistic Cannon 3 | . . . 2 1 . . . . . . . . . . . Launcher 1 | . . . . . . . . 1 . . . . . . . Special Weapon 1 | . . . . . . . . . . . . . . . 1 Impact Weapon . | . . . . . . . . . . . . . . . . Slashing Weapon . | . . . . . . . . . . . . . . . . Piercing Weapon . | . . . . . . . . . . . . . . . . Special Melee Weapon . | . . . . . . . . . . . . . . . . Unidentified Prototypes 13 | . . 2 2 1 6 . 2 . . . . . . . . Corrupted Parts 11 | . . . . . . . . . 4 1 5 . . 1 . System Corruption 58 | . . . . . . . . . 22 8 23 . . 5 . Parts Lost 40 | . 1 3 4 1 . . . 2 10 1 . . 1 13 4 Power 5 | . . . 1 . . . . . 1 . . . . 3 . Propulsion 11 | . . 1 1 . . . . 1 4 1 . . . 2 1 Utility 15 | . 1 1 1 1 . . . 1 3 . . . . 5 2 Weapon 9 | . . 1 1 . . . . . 2 . . . 1 3 1 Highest Loss Streak 11 | . 1 2 1 1 . . . 2 3 1 . . 1 11 2 To Critical Strikes 4 | . . . . . . . . . 1 1 . . . 2 . Average Slot Usage (%) 96 | . 97 94 94 95 99 100 100 87 99 95 93 84 68 76 18 Engine 5 | . 14 11 8 7 1 . 4 5 1 . . . . . . Core 3 | . . . . . 5 7 2 1 9 11 7 5 5 4 . Treads 17 | . 28 22 17 15 15 15 15 15 16 12 10 10 10 9 . Device 13 | . 7 10 15 25 18 15 15 11 10 11 11 10 8 10 . Storage 7 | . 14 11 9 7 7 7 7 5 5 5 5 5 2 4 1 Processor 12 | . . . 8 6 11 15 15 17 23 23 23 21 21 22 11 Hackware 10 | . . 1 9 8 15 15 15 11 12 11 11 10 10 6 5 Protection 6 | . 4 16 7 7 6 7 7 2 3 5 5 5 1 2 . Energy Gun 6 | . 14 13 12 2 5 7 7 . . . . . . 1 . Energy Cannon 6 | . . 7 . 2 6 7 7 8 10 11 11 10 1 6 . Ballistic Gun 2 | . 14 . . 4 1 . . 1 . . . . 1 . . Peak Build Rating 120 | 6 8 21 33 43 50 50 55 77 79 99 103 116 119 120 41 Average Rating 48 | 5 7 16 28 39 47 50 51 65 77 91 100 115 95 100 17 On Entrance 54 | 6 6 8 21 33 43 50 50 55 76 79 99 101 116 83 41 Naked Turns . | . . . . . . . . . . . . . . . . Heaviest Build 106 | 14 50 61 62 68 67 64 72 84 103 103 106 106 81 100 20 Greatest Support 160 | 40 40 40 44 44 40 40 40 66 67 103 103 160 160 160 80 Greatest Overweight (x) 18 | . 1 1 2 1 1 1 1 18 2 1 1 . . . 6 Average Overweight (x) . | . . 1 1 1 1 1 1 1 1 . . . . . . Largest Inventory Capacity 20 | 8 20 20 20 20 20 20 20 20 20 20 20 20 20 15 15 Average Capacity 19 | 8 16 20 20 20 20 20 20 20 20 20 20 20 12 14 7 Most Carried 20 | 5 12 20 20 20 20 20 20 20 20 20 20 20 20 10 5 Average Carried 17 | 3 6 15 19 18 19 20 19 17 19 19 19 19 12 6 4 Final Capacity 20 | 8 20 20 20 20 20 20 20 20 20 20 20 20 5 15 5 Final Carried 20 | 2 12 20 20 19 20 20 20 20 20 20 20 20 5 5 4 Class Distribution -------------------- 58% | Hacker-Mutant 19% | Scavenger-Mutant 15% | Mutant 6% | Hacker-Skirmisher Dominant Class ---------------- Mutant | -10/Materials Mutant | -9/Materials Hacker-Mutant | -8/Materials Hacker-Mutant | -7/Factory Hacker-Mutant | -7/Storage Hacker-Mutant | -7/Recycling Hacker-Mutant | -7/Scraptown Hacker-Skirmisher | -5/Factory Scavenger-Mutant | -5/Extension Scavenger-Mutant | -5/Cetus Scavenger-Mutant | -5/Archives Scavenger-Mutant | -4/Factory Scavenger-Mutant | -4/Waste Scavenger-Mutant | -4/Factory Hacker-Mutant | -4/Upper Caves Resources | -11 -10 -9 -8 -7 -7 -7 -7 -5 -5 -5 -5 -4 -4 -4 -4 ----------- Run | Yrd Mat Mat Mat Fac Sto Rec Scr Fac Ext Cet Arc Fac Was Fac Upp Matter Collected 3162 | 200 200 172 165 419 439 92 60 204 621 61 40 60 . 429 . Remotely . | . . . . . . . . . . . . . . . . Salvage Created 6906 | . 595 1372 707 391 608 119 . 366 1423 161 65 240 . 859 . Parts 327 | . 28 76 59 26 23 9 . 16 50 4 . 5 . 31 . Haulers Intercepted 5 | . 1 2 1 . 1 . . . . . . . . . . Recyclers Shooed 6 | . 1 1 . . . . . 3 1 . . . . . . Parts Field Recycled . | . . . . . . . . . . . . . . . . Retrieved Matter . | . . . . . . . . . . . . . . . . Parts Self-Destructed . | . . . . . . . . . . . . . . . . Prevented 4 | . . . . . . . . . . . . . . . 4 Kills | -11 -10 -9 -8 -7 -7 -7 -7 -5 -5 -5 -5 -4 -4 -4 -4 ------- Run | Yrd Mat Mat Mat Fac Sto Rec Scr Fac Ext Cet Arc Fac Was Fac Upp Combat Hostiles Destroyed 145 | . 17 26 25 13 8 2 . 8 22 2 1 3 . 18 . Melee 1 | . . . . . . . . . . . . . . 1 . Guns 68 | . 17 17 20 6 4 1 . . . . . . . 3 . Cannons 60 | . . 8 5 7 4 1 . 4 18 . 1 1 . 11 . AOE 5 | . . . . . . . . 4 . . . . . 1 . Classes Destroyed 13 | . 3 6 . 3 1 . . . . . . . . . . Worker 5 | . . 2 1 . 1 . . 1 . . . . . . . Builder 3 | . . . . 1 . . . 1 1 . . . . . . Hauler 5 | . 1 2 1 . 1 . . . . . . . . . . Recycler 5 | . . 1 1 . 2 . . . 1 . . . . . . Mechanic 1 | . . . . . 1 . . . . . . . . . . Operator 3 | . . 2 . 1 . . . . . . . . . . . Watcher 3 | . . 1 . . . . . . 1 1 . . . . . Swarmer 55 | . 6 4 17 7 . . . 4 8 . . . . 9 . Grunt 50 | . 11 14 4 3 4 . . . 8 . . 1 . 5 . Brawler 4 | . . 2 . . . . . . 1 . . 1 . . . Sentry 21 | . . 6 4 . 3 2 . . 5 . 1 . . . . Hunter 4 | . . . . 1 . . . . . . . 1 . 2 . Programmer 9 | . . . . 2 1 . . 4 . . . . . 2 . Cetus Guard 2 | . . . . . . . . . . 2 . . . . . Best Kill Streak 7 | . 4 7 6 4 4 1 . 5 6 3 1 3 . 6 . Combat Bots Only 6 | . 4 6 4 4 2 1 . 4 6 2 1 3 . 6 . Max Kills in Single Turn 3 | . 1 2 2 1 1 1 . 3 1 1 1 1 . 2 . Gunslinging 1 | . . 1 1 . . . . . . . . . . . . Exploded 2 | . . . . . . . . 2 . . . . . 1 . Melee 1 | . . . . . . . . . . . . . . 1 . Uniques/NPCs Destroyed . | . . . . . . . . . . . . . . . . Combat | -11 -10 -9 -8 -7 -7 -7 -7 -5 -5 -5 -5 -4 -4 -4 -4 -------- Run | Yrd Mat Mat Mat Fac Sto Rec Scr Fac Ext Cet Arc Fac Was Fac Upp Hostile Shots Fired 1342 | . 92 116 125 63 107 18 . 123 198 14 9 13 9 378 77 Missed 423 | . 39 33 40 12 37 7 . 48 64 3 3 6 1 102 28 Damage Taken 11262 | . 441 822 738 600 473 56 . 1082 1982 181 123 208 258 3520 778 Core 1873 | . 65 100 79 113 46 12 . 66 222 11 . . 37 538 584 Absorbed by Shields 485 | . . . . . . . . . 163 51 . . . 271 . Reduced by Siege Mode 37 | . . . . . . . . . . . . . . 37 . Redirected to Shielding 23 | . 5 18 . . . . . . . . . . . . . Ignored by Resistances 3685 | . 134 247 215 179 151 19 . 301 587 64 34 56 69 1407 222 Regen/Repaired (Parts) 231 | . . 85 146 . . . . . . . . . . . . Core Remaining (%) 79 | 100 74 75 85 . . . 75 . . . 70 . . . . Volleys Fired 383 | . 52 60 48 32 32 3 . 24 68 7 5 7 5 39 1 Largest 2 | . 2 2 2 2 2 2 . 2 2 2 2 2 2 2 1 Hottest 176 | . 70 120 121 109 105 105 . 130 166 162 162 162 70 176 . Shots Fired 718 | . 96 120 87 66 54 7 . 44 137 13 11 14 10 58 1 Gun 365 | . 96 74 73 34 23 3 . 12 14 . . . 10 26 . Cannon 350 | . . 46 14 32 31 4 . 30 123 13 11 14 . 32 . Launcher 2 | . . . . . . . . 2 . . . . . . . Special 1 | . . . . . . . . . . . . . . . 1 Kinetic 141 | . 52 4 14 35 1 . . 11 14 . . . 10 . . Thermal 411 | . 44 116 73 31 53 7 . 31 36 . . . . 20 . Explosive . | . . . . . . . . . . . . . . . . Electromagnetic 165 | . . . . . . . . 2 87 13 11 14 . 38 . Robot Hit Streak 65 | . 14 13 10 12 65 15 . 15 18 4 6 9 13 19 6 Robot Miss Streak 4 | . 2 2 4 4 2 1 . 2 3 4 2 1 . 2 . Penetration Max 1 | . . . . . . . . 1 1 . . . . . . Secondary Targets 14 | . 2 6 5 . . . . . . . . . . 1 . Max Gunslinging Chain 1 | . 1 1 1 . . . . . . . . . . 1 . Shots Hit Robots 552 | . 76 92 67 47 44 6 . 37 96 6 8 12 10 50 1 Core Hits 325 | . 32 41 58 42 44 8 . 14 44 5 5 3 . 29 . Critical Kills 1 | . . . . 1 . . . . . . . . . . . Critical Parts Destroyed 1 | . . . . . . . . 1 . . . . . . . Critical Strikes 19 | . . 2 2 1 . . . 1 2 1 . . 4 6 . Burn 7 | . . 2 1 . . . . . . . . . . 4 . Meltdown 1 | . . . . 1 . . . . . . . . . . . Destroy 5 | . . . . . . . . 1 . . . . 4 . . Blast 1 | . . . 1 . . . . . . . . . . . . Corrupt 5 | . . . . . . . . . 2 1 . . . 2 . Melee Attacks . | . . . . . . . . . . . . . . . . Impact . | . . . . . . . . . . . . . . . . Slashing . | . . . . . . . . . . . . . . . . Piercing . | . . . . . . . . . . . . . . . . Sneak Attacks . | . . . . . . . . . . . . . . . . Combat Hostiles . | . . . . . . . . . . . . . . . . Follow-up Attacks . | . . . . . . . . . . . . . . . . Damage Inflicted 13758 | . 997 1616 1146 962 1231 147 . 1403 3199 440 257 416 259 1685 . Guns 5470 | . 973 966 927 387 633 92 . 282 345 . . . 259 606 . Cannons 7507 | . . 650 216 575 580 55 . 877 2748 271 257 416 . 862 . Explosions 615 | . . . . . . . . 244 94 169 . . . 108 . Melee . | . . . . . . . . . . . . . . . . Ramming 166 | . 24 . 3 . 18 . . . 12 . . . . 109 . Kinetic 2037 | . 497 35 216 410 17 . . 258 345 . . . 259 . . Thermal 7443 | . 476 1581 927 552 1196 147 . 943 872 169 . . . 580 . Explosive . | . . . . . . . . . . . . . . . . Electromagnetic 4112 | . . . . . . . . 202 1970 271 257 416 . 996 . Impact . | . . . . . . . . . . . . . . . . Slashing . | . . . . . . . . . . . . . . . . Piercing . | . . . . . . . . . . . . . . . . Highest Corruption 66 | . . . . 5 6 6 . 7 35 43 66 . . 10 21 Average Corruption 15 | . . . . 4 5 6 . 3 29 40 46 . . 5 15 Corruption Purged . | . . . . . . . . . . . . . . . . Corruption Blocked . | . . . . . . . . . . . . . . . . Effects 319 | . . . . 30 27 59 . 12 141 27 10 . . 9 4 Message Errors 74 | . . . . 8 3 10 . 3 40 6 2 . . 1 1 Matter Fused 77 | . . . . 10 9 16 . 2 27 5 2 . . 5 1 Heat Flow Errors 38 | . . . . 2 3 8 . . 20 4 1 . . . . Energy Discharges 37 | . . . . 1 1 8 . 2 17 4 2 . . 1 1 Parts Rejected 2 | . . . . . 2 . . . . . . . . . . Parts Fused 4 | . . . . . . 1 . . 3 . . . . . . Data Loss (minor) 38 | . . . . 4 5 13 . 2 9 2 1 . . 2 . Data Loss (major) 16 | . . . . 2 1 2 . 2 6 3 . . . . . Misfires 18 | . . . . 3 2 1 . . 10 1 1 . . . . Alerts 5 | . . . . . . . . 1 4 . . . . . . Misdirections 3 | . . . . . . . . . 1 . 1 . . . 1 Weapon Failures 7 | . . . . . 1 . . . 4 2 . . . . . Overload Shots . | . . . . . . . . . . . . . . . . Overflow Damage 255 | . . 9 . 9 4 . . 66 125 . . . . 42 . Projectiles 205 | . . 9 . 9 4 . . 66 108 . . . . 9 . Explosions 50 | . . . . . . . . . 17 . . . . 33 . Melee . | . . . . . . . . . . . . . . . . Knockbacks 6 | . . . . 5 1 . . . . . . . . . . Impact 1 | . . . . . 1 . . . . . . . . . . Kinetic 4 | . . . . 4 . . . . . . . . . . . Secondary 1 | . . . . 1 . . . . . . . . . . . Self-Inflicted Damage 61 | . . . . . . . . . . . . . . 61 . Shots 1 | . . . . . . . . . . . . . . 1 . Rammed 27 | . 5 . 1 . 1 . . . 3 . . . . 17 . Targets Rammed 28 | . 5 1 1 . 1 . . . 3 . . . . 17 . Kicked . | . . . . . . . . . . . . . . . . Crushed 1 | . . 1 . . . . . . . . . . . . . Highest Temperature 529 | . 135 234 72 111 198 254 . 84 319 390 139 240 . 529 . Average Temperature 100 | . 49 41 37 37 39 88 . 36 99 151 64 95 . 221 . Received Heat Transfer 2124 | . 297 300 216 45 210 18 . . 646 . 9 . . 383 . Effects 26 | . . . . . . . . . 1 3 . . . 22 . Shutdowns 12 | . . . . . . . . . . 1 . . . 11 . Energy Bleed 5 | . . . . . . . . . 1 2 . . . 2 . Interference 1 | . . . . . . . . . . . . . . 1 . Matter Decay 2 | . . . . . . . . . . . . . . 2 . Short Circuit 4 | . . . . . . . . . . . . . . 4 . Damage (minor) 2 | . . . . . . . . . . . . . . 2 . Siege Activations 1 | . . . . . . . . . . . . . . 1 . Total Turns 24 | . . . . . . . . . . . . . . 24 . Longest Duration 24 | . . . . . . . . . . . . . . 24 . Robots Corrupted 11 | . . . . . . . . . 4 3 . 2 . 2 . Combat Hostiles 9 | . . . . . . . . . 3 2 . 2 . 2 . Parts Fried 18 | . . . . . . . . . 7 3 . 2 . 6 . Impact Corruptions 1 | . . . . 1 . . . . . . . . . . . Robots Melted 3 | . . 1 . 1 . . . . 1 . . . . . . Combat Hostiles 2 | . . 1 . . . . . . 1 . . . . . . Parts Melted 19 | . 1 6 3 2 2 . . 1 2 . . . . 2 . Heat Transferred 12127 | . 1406 3552 1759 695 1299 149 . 1019 1036 200 . . . 1012 . Parts Sabotaged . | . . . . . . . . . . . . . . . . Parts Stolen . | . . . . . . . . . . . . . . . . Parts Stripped . | . . . . . . . . . . . . . . . . Power Chain Reactions 3 | . . . . . . . . 1 . 1 . . . 1 . Alert | -11 -10 -9 -8 -7 -7 -7 -7 -5 -5 -5 -5 -4 -4 -4 -4 ------- Run | Yrd Mat Mat Mat Fac Sto Rec Scr Fac Ext Cet Arc Fac Was Fac Upp Peak Influence 376 | . 187 341 376 303 184 105 . 125 264 96 204 275 82 258 . Initial 80 | . . . 42 8 53 13 . . 27 . . 59 80 19 . Average 90 | . 42 167 207 90 74 26 . 24 90 63 173 151 67 134 . Maximum Alert Level 2 | . . 1 2 1 . . . . 1 . 1 1 . 1 . Low Security (%) 83 | 100 100 49 41 91 100 100 . 100 87 100 20 53 100 70 . Level 1 16 | . . 50 58 8 . . . . 12 . 79 46 . 29 . Level 2 . | . . . . . . . . . . . . . . . . Level 3 . | . . . . . . . . . . . . . . . . Level 4 . | . . . . . . . . . . . . . . . . Level 5 . | . . . . . . . . . . . . . . . . High Security . | . . . . . . . . . . . . . . . . Max Security . | . . . . . . . . . . . . . . . . Squads Dispatched 27 | . 5 3 1 4 2 . . 5 2 . . 1 . 4 . Investigation 12 | . 5 2 . . 1 . . 3 . . . . . 1 . Extermination 6 | . . . . 2 1 . . 2 . . . . . 1 . Reinforcement 8 | . . 1 . 2 . . . . 2 . . 1 . 2 . Assault . | . . . . . . . . . . . . . . . . Garrison 1 | . . . 1 . . . . . . . . . . . . Intercept . | . . . . . . . . . . . . . . . . Searches Triggered . | . . . . . . . . . . . . . . . . Construction Impeded . | . . . . . . . . . . . . . . . . Haulers Reinforced 3 | . . . . 1 . . . . . . . . . 2 . Active Scanning Responses . | . . . . . . . . . . . . . . . . Cargo Convoy Interrupts . | . . . . . . . . . . . . . . . . Stealth | -11 -10 -9 -8 -7 -7 -7 -7 -5 -5 -5 -5 -4 -4 -4 -4 --------- Run | Yrd Mat Mat Mat Fac Sto Rec Scr Fac Ext Cet Arc Fac Was Fac Upp Distress Signals 14 | . 1 4 3 . 1 . . . 1 2 . . . 2 . Communications Jammed 64 | . . . . . . . . 34 28 . . . . 2 . Distress Signals 64 | . . . . . . . . 34 28 . . . . 2 . Times Spotted 260 | . 32 39 43 16 11 1 . 16 43 5 5 6 6 34 3 Peak Tracking Total 8 | . 4 6 7 4 3 1 . 5 6 5 2 3 6 8 3 Tactical Retreats 11 | . 2 . 1 4 . . . . 1 . . . . 3 . Traps | -11 -10 -9 -8 -7 -7 -7 -7 -5 -5 -5 -5 -4 -4 -4 -4 ------- Run | Yrd Mat Mat Mat Fac Sto Rec Scr Fac Ext Cet Arc Fac Was Fac Upp Traps Triggered 18 | . 4 2 . . 1 . . 5 4 . . 1 . 1 . Indirectly . | . . . . . . . . . . . . . . . . Trap Hack Attempts . | . . . . . . . . . . . . . . . . Triggered . | . . . . . . . . . . . . . . . . Disarmed . | . . . . . . . . . . . . . . . . Reprogrammed . | . . . . . . . . . . . . . . . . Reused . | . . . . . . . . . . . . . . . . Traps Extracted . | . . . . . . . . . . . . . . . . Installed . | . . . . . . . . . . . . . . . . Triggered 2 | . . . . . . . . . . . . . . . 2 Objects Rigged 5 | . . . . . . . . . . . . . . 5 . Machines | -11 -10 -9 -8 -7 -7 -7 -7 -5 -5 -5 -5 -4 -4 -4 -4 ---------- Run | Yrd Mat Mat Mat Fac Sto Rec Scr Fac Ext Cet Arc Fac Was Fac Upp Machines Disabled 13 | . . 1 . . 3 1 . . 3 . 3 . . 2 . Max in Single Turn 1 | . . 1 . . 1 1 . . 1 . 1 . . 1 . Garrison Access 2 | . . . 1 . . . . . . . . . . 1 . Energy Cycler 1 | . . . . . . . . . 1 . . . . . . Machines Repaired . | . . . . . . . . . . . . . . . . Machines Dismantled . | . . . . . . . . . . . . . . . . Machines Sabotaged . | . . . . . . . . . . . . . . . . Overloaded Fab Kills . | . . . . . . . . . . . . . . . . Hacking | -11 -10 -9 -8 -7 -7 -7 -7 -5 -5 -5 -5 -4 -4 -4 -4 --------- Run | Yrd Mat Mat Mat Fac Sto Rec Scr Fac Ext Cet Arc Fac Was Fac Upp Machines Accessed 62 | . 9 9 8 3 4 11 2 5 7 1 . . . 3 . Terminals 41 | . 7 7 5 2 2 6 . 3 7 1 . . . 1 . Fabricators 2 | . . . . 1 . . . 1 . . . . . . . Repair Stations 3 | . 1 1 1 . . . . . . . . . . . . Recycling Units 8 | . 1 . . . 2 5 . . . . . . . . . Scanalyzers 4 | . . 1 1 . . . . 1 . . . . . 1 . Garrison Access 2 | . . . 1 . . . . . . . . . . 1 . Total Hacks 158 | . 28 34 28 8 5 20 2 15 11 1 . . . 6 . Successful 112 | . 15 27 23 6 3 13 2 14 6 1 . . . 2 . Failed 46 | . 13 7 5 2 2 7 . 1 5 . . . . 4 . Catastrophic 5 | . . 2 . . . . . 1 . . . . . 2 . Database Lockouts . | . . . . . . . . . . . . . . . . Manual 86 | . 20 16 13 5 4 19 . 4 . 1 1 . . 3 . Terminals 118 | . 24 25 23 6 2 14 . 9 11 1 . . . 3 . Fabricators 4 | . . . . 2 . . . 2 . . . . . . . Repair Stations 7 | . 3 2 2 . . . . . . . . . . . . Recycling Units 10 | . 1 . . . 3 6 . . . . . . . . . Scanalyzers 14 | . . 7 2 . . . . 4 . . . . . 1 . Garrison Access 3 | . . . 1 . . . . . . . . . . 2 . Terminal Hacks 43 | . 5 9 10 3 2 . 2 5 6 1 . . . . . Record 7 | . . 6 . . . . 1 . . . . . . . . Part Schematic 3 | . . . . . . . . . 3 . . . . . . Robot Analysis 3 | . 1 . 1 1 . . . . . . . . . . . Prototype ID Bank 2 | . . . 2 . . . . . . . . . . . . Open Door 6 | . . . . . 2 . . . 3 1 . . . . . Branch Access Points 4 | . . 1 1 1 . . . 1 . . . . . . . Terminal Index 4 | . 1 . 1 1 . . . 1 . . . . . . . Fabricator Index 1 | . . . . . . . . 1 . . . . . . . Repair Station Index 1 | . . 1 . . . . . . . . . . . . . Alert Level 2 | . 2 . . . . . . . . . . . . . . Unreport Threat 1 | . . . 1 . . . . . . . . . . . . Locate Traps 1 | . . . 1 . . . . . . . . . . . . Dispatch Records 2 | . . 1 . . . . . 1 . . . . . . . Transport Status 1 | . . . 1 . . . . . . . . . . . . Registered Components 1 | . . . . . . . . 1 . . . . . . . Registered Prototypes 1 | . . . 1 . . . . . . . . . . . . Zone Layout 2 | . 1 . 1 . . . . . . . . . . . . Derelict Proto ID Bank 1 | . . . . . . . 1 . . . . . . . . Fabricator Hacks 2 | . . . . . . . . 2 . . . . . . . Load Schematic 1 | . . . . . . . . 1 . . . . . . . Build 1 | . . . . . . . . 1 . . . . . . . Repair Station Hacks 4 | . . 2 2 . . . . . . . . . . . . Scan Component 2 | . . 1 1 . . . . . . . . . . . . Repair 2 | . . 1 1 . . . . . . . . . . . . Recycling Unit Hacks . | . . . . . . . . . . . . . . . . Scanalyzer 13 | . . 7 2 . . . . 4 . . . . . . . Insert Component 7 | . . 4 1 . . . . 2 . . . . . . . Analyze 6 | . . 3 1 . . . . 2 . . . . . . . Garrison Access Hacks 2 | . . . 1 . . . . . . . . . . 1 . Seal Access 2 | . . . 1 . . . . . . . . . . 1 . Unauthorized Hacks 48 | . 10 9 8 3 1 13 . 3 . . . . . 1 . Terminals 38 | . 8 9 8 1 . 8 . 3 . . . . . 1 . Botnet 14 | . 3 3 3 1 . 3 . 1 . . . . . . . Detonate 1 | . . . . . . . . . . . . . . 1 . Skim 23 | . 5 6 5 . . 5 . 2 . . . . . . . Fabricators 2 | . . . . 2 . . . . . . . . . . . Liberate 1 | . . . . 1 . . . . . . . . . . . Fabnet 1 | . . . . 1 . . . . . . . . . . . Repair Stations 1 | . 1 . . . . . . . . . . . . . . Mechanics 1 | . 1 . . . . . . . . . . . . . . Recycling Units 7 | . 1 . . . 1 5 . . . . . . . . . Monitor 1 | . 1 . . . . . . . . . . . . . . Tunnel 6 | . . . . . 1 5 . . . . . . . . . Scanalyzers . | . . . . . . . . . . . . . . . . Garrison Access . | . . . . . . . . . . . . . . . . Data Cores Recovered 2 | . . 2 . . . . . . . . . . . . . Used . | . . . . . . . . . . . . . . . . Hacking Detections 46 | . 8 9 7 2 3 6 . 5 4 . . . . 2 . Full Trace Events 8 | . 1 1 . . . 2 . 3 . . . . . 1 . Feedback Events . | . . . . . . . . . . . . . . . . Feedback Blocked . | . . . . . . . . . . . . . . . . Robot Schematics Acquired . | . . . . . . . . . . . . . . . . Robots Built . | . . . . . . . . . . . . . . . . Authchips . | . . . . . . . . . . . . . . . . Time . | . . . . . . . . . . . . . . . . Total Robot Build Rating . | . . . . . . . . . . . . . . . . Part Schematics Acquired 9 | . . 3 1 . . . . 2 3 . . . . . . Parts Built 2 | . . . . . . . . 2 . . . . . . . Authchips . | . . . . . . . . . . . . . . . . Time 36 | . . . . . . . . 36 . . . . . . . Total Part Build Rating 6 | . . . . . . . . 6 . . . . . . . Parts Repaired 2 | . . 1 1 . . . . . . . . . . . . Time 64 | . . 26 38 . . . . . . . . . . . . Parts Recycled . | . . . . . . . . . . . . . . . . Recycled Matter . | . . . . . . . . . . . . . . . . Retrieved Matter . | . . . . . . . . . . . . . . . . Retrieved Components . | . . . . . . . . . . . . . . . . Parts Scanalyzed 6 | . . 3 1 . . . . 2 . . . . . . . Part Schematics Acquired 6 | . . 3 1 . . . . 2 . . . . . . . Parts Damaged . | . . . . . . . . . . . . . . . . Bothacking | -11 -10 -9 -8 -7 -7 -7 -7 -5 -5 -5 -5 -4 -4 -4 -4 ------------ Run | Yrd Mat Mat Mat Fac Sto Rec Scr Fac Ext Cet Arc Fac Was Fac Upp Used RIF Installer . | . . . . . . . . . . . . . . . . Robots Hacked 1 | . . . . . . . . . 1 . . . . . . Non-combat . | . . . . . . . . . . . . . . . . Combat 1 | . . . . . . . . . 1 . . . . . . Robot Hacks Applied . | . . . . . . . . . . . . . . . . Relay Couplers Released . | . . . . . . . . . . . . . . . . Fabnet Peak Effective % 1 | . . . . . . . . 1 1 1 1 . . . . Autooverrided 1 | . . . . . . . . . 1 . . . . . . Robots Rewired 10 | . . . . . . . . . 10 . . . . . . Allies Hacked . | . . . . . . . . . . . . . . . . Hacks Repelled . | . . . . . . . . . . . . . . . . Allies | -11 -10 -9 -8 -7 -7 -7 -7 -5 -5 -5 -5 -4 -4 -4 -4 -------- Run | Yrd Mat Mat Mat Fac Sto Rec Scr Fac Ext Cet Arc Fac Was Fac Upp Total Allies 20 | . . . . . . . . . 15 5 . . . . . Largest Group 8 | . . . . . . . . . 8 6 6 5 3 1 . Highest-Rated Group 633 | . . . . . . . . . 378 633 633 480 281 96 . Highest-Rated Ally 159 | . . . . . . . . . 159 159 153 96 96 96 . Total Orders 2 | . . . . . . . . . 1 1 . . . . . ROAM 2 | . . . . . . . . . 1 1 . . . . . Ally Attacks 252 | . . . . . . . . . 175 10 26 25 11 5 . Total Damage 6404 | . . . . . . . . . 3271 300 1022 774 430 607 . Kills 28 | . . . . . . . . . 17 2 3 3 . 3 . Allies Corrupted . | . . . . . . . . . . . . . . . . Allies Melted . | . . . . . . . . . . . . . . . . Intel | -11 -10 -9 -8 -7 -7 -7 -7 -5 -5 -5 -5 -4 -4 -4 -4 ------- Run | Yrd Mat Mat Mat Fac Sto Rec Scr Fac Ext Cet Arc Fac Was Fac Upp Robot Analysis Total 3 | . 1 . 1 1 . . . . . . . . . . . Derelict Logs Recovered . | . . . . . . . . . . . . . . . . Drone Launches . | . . . . . . . . . . . . . . . . Drone Recoveries . | . . . . . . . . . . . . . . . . Exploration | -11 -10 -9 -8 -7 -7 -7 -7 -5 -5 -5 -5 -4 -4 -4 -4 ------------- Run | Yrd Mat Mat Mat Fac Sto Rec Scr Fac Ext Cet Arc Fac Was Fac Upp Turns Passed 22915 | 9 2519 1715 1744 1513 1069 2148 6012 1444 2996 431 181 90 165 793 86 Spaces Moved 8699 | 2 876 607 673 583 339 853 2398 529 1089 124 69 41 73 340 103 Core 96 | . . . . . . . . 1 . . . . . . 95 Treads 8602 | 1 876 607 673 583 339 853 2398 528 1089 124 69 41 73 340 8 Legs 1 | 1 . . . . . . . . . . . . . . . Wheels . | . . . . . . . . . . . . . . . . Hover . | . . . . . . . . . . . . . . . . Flight . | . . . . . . . . . . . . . . . . Fastest Speed 50 | 120 160 240 225 225 250 250 250 170 225 160 160 160 160 160 50 Average Speed 233 | 140 215 240 227 236 250 250 250 244 244 178 207 160 160 160 67 Slowest Speed 950 | 160 240 240 305 250 250 250 250 950 330 246 240 160 160 160 350 Overloaded Moves . | . . . . . . . . . . . . . . . . Propulsion Burnouts . | . . . . . . . . . . . . . . . . Robots Hopped . | . . . . . . . . . . . . . . . . Cave-ins Triggered . | . . . . . . . . . . . . . . . . Exploration Rate (%) 47 | 2 96 53 47 10 37 99 96 9 98 58 67 2 65 9 15 Regions Visited 15 Branch Regions 7 Pre-discovered Areas 9 | . . 3 . . 1 5 . . . . . . . . . Known Exits Taken 6 | . . 1 . 1 . . . 1 1 1 1 . . . . Unknown Exits Taken 7 | 1 1 . 1 . 1 1 1 . . . . . . 1 . Scrap Searched 2 | . . . . . . . 2 . . . . . . . . Spaces Dug . | . . . . . . . . . . . . . . . . Terrain Destroyed 27 | . . . 2 3 2 1 . 4 10 4 . . 1 . . Melee . | . . . . . . . . . . . . . . . . Projectile 13 | . . . 2 3 2 1 . 2 2 . . . 1 . . AOE 14 | . . . . . . . . 2 8 4 . . . . . Terrain Rammed . | . . . . . . . . . . . . . . . . Walls Destroyed . | . . . . . . . . . . . . . . . . Machines Disabled . | . . . . . . . . . . . . . . . . Actions | -11 -10 -9 -8 -7 -7 -7 -7 -5 -5 -5 -5 -4 -4 -4 -4 --------- Run | Yrd Mat Mat Mat Fac Sto Rec Scr Fac Ext Cet Arc Fac Was Fac Upp Total 10593 | 11 1402 750 803 676 524 865 2421 629 1289 323 98 54 110 519 119 Wait 1061 | . 454 35 38 22 110 10 1 24 51 173 14 . 31 85 13 Move 8686 | 1 875 606 672 582 338 852 2397 528 1088 123 68 41 72 340 103 Hop . | . . . . . . . . . . . . . . . . Pick Up 117 | 2 10 18 10 11 8 . 9 14 12 7 2 3 . 11 . Fast Attach 60 | . 3 5 10 4 10 . . 14 7 1 . . . 6 . Attach 42 | 2 . 5 2 4 . . . 12 6 1 1 1 . 7 1 Detach 5 | . . 1 . 1 1 . . 1 . . . . . 1 . Swap 62 | . 1 7 6 7 6 . 5 8 8 1 5 . 2 6 . Drop 115 | 6 2 12 16 13 18 . 9 4 11 10 3 2 . 8 1 Fire 383 | . 52 60 48 32 32 3 . 24 68 7 5 7 5 39 1 Melee . | . . . . . . . . . . . . . . . . Ram . | . . . . . . . . . . . . . . . . Kick . | . . . . . . . . . . . . . . . . Crush 27 | . 5 1 1 . 1 . . . 3 . . . . 16 . Escape Stasis 8 | . . . . . . . . . 8 . . . . . . Rewire 27 | . . . . . . . . . 27 . . . . . . Trap . | . . . . . . . . . . . . . . . . Miscellaneous . | . . . . . . . . . . . . . . . . Route ------- -11/Scrapyard -10/Materials (discovered 5 exits: *Mat x3 / [*Min x2]) -9/Materials (discovered 5 exits: *Mat x3 / *Min x2) -8/Materials (discovered 2 exits: *Fac x2) -7/Factory (discovered 4 exits: *Sto x2 / Low x2) -7/Storage -7/Recycling (discovered 2 exits: *Fac / *Scr) -7/Scraptown (discovered 2 exits: *Fac x2) -5/Factory (discovered 4 exits: Upp x2 / *Ext x2) -5/Extension (discovered 2 exits: *Fac / *Cet) -5/Cetus -5/Archives -4/Factory -4/Waste -4/Factory -4/Upper Caves History --------- Turn | Location | Event 5 | -11/Scrapyard | Discovered new exit (range 1) 10 | -11/Scrapyard | Entered Materials 310 | -10/Materials | Build established: Mutant 836 | -10/Materials | Discovered new exit (range 9) 1021 | -10/Materials | Discovered new exit (range 10) 1382 | -10/Materials | Discovered new exit (range 7) 1474 | -10/Materials | Discovered new exit (range 9) 1995 | -10/Materials | Discovered new exit (range 11) 2529 | -10/Materials | Entered another Materials area 2529 | -9/Materials | Evolved 2 slots: Utility x2 2545 | -9/Materials | Discovered new exit (range 15) 3589 | -9/Materials | Discovered new exit (range 11) 3880 | -9/Materials | Repaired Lgt. Armor Plating 3884 | -9/Materials | Learned 2 Storage zone layouts 3914 | -9/Materials | Loaded intel: 11 trap records 3926 | -9/Materials | Identified exit to Mines 3933 | -9/Materials | Identified exit to Materials 3940 | -9/Materials | Learned location of Zion (-6) 3942 | -9/Materials | Learned Storage trap positions 3997 | -9/Materials | Loaded intel: 2 repair station locations 4244 | -9/Materials | Entered another Materials area 4244 | -8/Materials | Evolved 2 slots: Utility x2 4361 | -8/Materials | Build established: Hacker-Mutant 4377 | -8/Materials | Garrison activated, responded to threat 4878 | -8/Materials | Discovered new exit (range 10) 5299 | -8/Materials | Repaired Adv. Treads 5774 | -8/Materials | Discovered new exit (range 9) 5988 | -8/Materials | Entered Factory 5988 | -7/Factory | Evolved 2 slots: Utility x2 7364 | -7/Factory | Identified exit to Storage 7364 | -7/Factory | Identified exit to Lower Caves 7501 | -7/Factory | Entered Storage 7503 | -7/Storage | Loaded intel: 28 trap records 8563 | -7/Storage | Used back door to open Recycling access 8563 | -7/Storage | Discovered new exit (range 4) 8570 | -7/Storage | Entered Recycling 8571 | -7/Recycling | Met a Zionite searching for Scraptown 9353 | -7/Recycling | Discovered new exit (range 15) 10643 | -7/Recycling | Scanned before Scraplab entrance 10681 | -7/Recycling | Entered Scraplab 10711 | -7/Recycling | Discovered new exit (range 3) 10718 | -7/Recycling | Entered Scraptown 10718 | -7/Scraptown | System corruption cleaned by C-Scrubber 11265 | -7/Scraptown | Visited Awakened 11392 | -7/Scraptown | Visited Comm Corps 11667 | -7/Scraptown | Visited SPCMW 11752 | -7/Scraptown | Visited Red Mages 11917 | -7/Scraptown | Visited Symbiants 12022 | -7/Scraptown | Heard Great Nut preacher, LISTEN AND RECITE! 13427 | -7/Scraptown | Visited Cyclists 13527 | -7/Scraptown | Visited CPS Storage 14056 | -7/Scraptown | Discovered new exit (range 7) 14393 | -7/Scraptown | Visited UFD Registry 14393 | -7/Scraptown | Registered with UFD as "Thundernuts" 14746 | -7/Scraptown | Visited Research Penetration Think Tank 14826 | -7/Scraptown | Visited Science Guys 14941 | -7/Scraptown | Visited Junk Repository 15119 | -7/Scraptown | Discovered new exit (range 3) 15339 | -7/Scraptown | Visited Scrapoid Research Area 15429 | -7/Scraptown | Visited Junk Repository 15579 | -7/Scraptown | Visited Supply Room 16094 | -7/Scraptown | Visited Supply Room 16179 | -7/Scraptown | Visited LU-1G1's Boring Crew 16304 | -7/Scraptown | Visited A0-MCA Data Center 16319 | -7/Scraptown | Given a B- rating by A0-MCA 16322 | -7/Scraptown | Found A0-MCA's Component Scanner 16730 | -7/Scraptown | Entered Factory 16730 | -5/Factory | Evolved 4 slots: Power x1, Propulsion x1, Utility x2 17138 | -5/Factory | Identified exit to Upper Caves 17138 | -5/Factory | Identified exit to Extension 17270 | -5/Factory | Build established: Hacker-Skirmisher 18027 | -5/Factory | Fabricated Arm. Treads (x2) 18174 | -5/Factory | Entered Extension 18195 | -5/Extension | Disrupted transfer network 18568 | -5/Extension | Build established: Hacker-Mutant 18694 | -5/Extension | System corruption reached 10% 18803 | -5/Extension | Lost 3 parts (2n1u) 18912 | -5/Extension | System corruption reached 30% 19046 | -5/Extension | Rescued a captive Derelict 19056 | -5/Extension | Build established: Scavenger-Mutant 19113 | -5/Extension | Rescued A7 19383 | -5/Extension | Rescued a captive Derelict 19917 | -5/Extension | Spotted B-75 Beast 19929 | -5/Extension | Allies destroyed B-75 Beast 19932 | -5/Extension | Spotted B-75 Beast 19954 | -5/Extension | Allies destroyed B-75 Beast 19981 | -5/Extension | Lost 3 allies 20182 | -5/Extension | Energy Cycler disabled 20184 | -5/Extension | Rescued a captive Derelict 20185 | -5/Extension | Rescued a captive Derelict 20498 | -5/Extension | Lost 3 allies 20632 | -5/Extension | Discovered new exit (range 10) 20635 | -5/Extension | Discovered new exit (range 6) 21167 | -5/Extension | Identified exit to Cetus 21170 | -5/Extension | Entered Cetus 21170 | -5/Cetus | Accompanied by 2 allies (A7) 21175 | -5/Cetus | Acquired a Cetus Manufacturing Module code from A7 21256 | -5/Cetus | Spotted Cetus Guard 21256 | -5/Cetus | Spotted Cetus Guard 21260 | -5/Cetus | Spotted Cetus Guard 21262 | -5/Cetus | Spotted Cetus Guard 21264 | -5/Cetus | Allies destroyed Cetus Guard 21267 | -5/Cetus | Destroyed Cetus Guard 21273 | -5/Cetus | Allies destroyed Cetus Guard 21279 | -5/Cetus | Destroyed Cetus Guard 21400 | -5/Cetus | Started Cetus Manufacturing Module 21417 | -5/Cetus | Escorted A7 to Cetus Mainframe 21425 | -5/Cetus | Manufactured an Enhanced Grunt 21450 | -5/Cetus | Manufactured an Enhanced Grunt 21475 | -5/Cetus | Manufactured an Enhanced Grunt 21500 | -5/Cetus | Manufactured an Enhanced Grunt 21525 | -5/Cetus | Manufactured an Enhanced Grunt 21577 | -5/Cetus | Discovered new exit (range 15) 21599 | -5/Cetus | Identified exit to Archives 21601 | -5/Cetus | Entered Archives 21601 | -5/Archives | Accompanied by 6 allies (A7) 21606 | -5/Archives | Received a hacking code to weaken MAIN.C 21653 | -5/Archives | Discovered new exit (range 14) 21718 | -5/Archives | Unable to access archive contents 21757 | -5/Archives | Identified exit to Factory 21782 | -5/Archives | Entered Factory 21782 | -4/Factory | Accompanied by 5 allies 21782 | -4/Factory | Evolved 2 slots: Propulsion x1, Utility x1 21872 | -4/Factory | Sucked down chute 21872 | -4/Factory | Entered Waste 21903 | -4/Waste | Spotted C-40 Crusher 21920 | -4/Waste | Crushed by Compactor (1 part destroyed, 2 dropped) 21949 | -4/Waste | Spotted C-40 Crusher 21958 | -4/Waste | Crushed by Compactor (0 parts destroyed, 1 dropped) 21962 | -4/Waste | Spotted C-40 Crusher 21968 | -4/Waste | Spotted C-40 Crusher 21975 | -4/Waste | Crushed by Compactor (0 parts destroyed, 1 dropped) 21992 | -4/Waste | Spotted C-40 Crusher 22005 | -4/Waste | Spotted C-40 Crusher 22011 | -4/Waste | Discovered new exit (range 16) 22033 | -4/Waste | Identified exit to Factory 22037 | -4/Waste | Entered Factory 22047 | -4/Factory | 5 allies followed down the chute 22792 | -4/Factory | System corruption reached 10% 22822 | -4/Factory | Lost 11 parts (2p2n4u3w) 22822 | -4/Factory | Discovered new exit (range 5) 22830 | -4/Factory | Entered Upper Caves 22832 | -4/Upper Caves | Core integrity fell below 50% 22894 | -4/Upper Caves | Core integrity fell below 20% 22916 | -4/Upper Caves | Destroyed by P-70 Sage with High-powered Shock Rifle Last Messages --------------- floor. 22815_ Core Analyzer severed. 22820_ P-70 Sage heat short circuits Mic. Fission Core. 22822_ P-70 Sage heat damages Hpw. Shock Rifle. 22822_ EXIT=FOUND 22822_ Penetrated by Slug. 22830_ Slammed into Y-64 Sentinel. LOCATION=UNKNOWN GOAL=ESCAPE 22831_ S=U05QW/E1X2KF|KL2GN9S2AP8PO,PP<>VLQX 22842_ Centrium Heavy Treads destroyed. 22848_ P-70 Sage resets P-70 Sage, system corruption cleaned. 22854_ Dropped Lrg. Storage Unit. 22854_ A0-MCA's Component Scanner destroyed. 22856_ P-70 Sage resets P-70 Sage, system corruption cleaned. 22872_ System corrupted: Energy discharge (-37). 22901_ CPS modules attach to P-70 Sage. 22903_ CPS Tube destroyed. 22911_ Imp. Target Analyzer destroyed. 22913_ System corrupted: Matter fused (-7). Map ----- +----------------------------------------------------+ | ???????????????????????????????? # ## | | ???????????????????????????????????????# # ### | | ???????????????????????????????????????# ##?## | | ???????????????????????????????????????## ##???# | | ????????????????????????????????##??????# ##????# | | ???????????????????????????????## ###???# #??# | | ??????????????????????????????## ##??# ##?## | | ??????????????????????????????# #### #?# | | ??????????????????????????????# # #?## | | ??????????????????????????????## # # #??## | | ???????????????????????????????## # # # #??# | | ????????????????????????????????### #?# | | ??????????????????????????????????## ## # ####?# | | ??????????????????????????????????## ######????## | | ?????????????????????????????????## #?????????? | | ????????????????????????????????## ##?????????# | | ???????????????????????????????## # #??????????? | | ???????????????????????????????# # ##?????????? | | ???????????????????????????????# #####?????? | | ??????????????????????????????### #?????? | | ?????????????????????????????## # #?????? | | ??????????????????????????#### # # # | | ?????????????????????????## p # ### # # | | ????????????????????????## pp ##? # ### | | ????????????????????????# #??# # #???? | | ????????????????????????#@ ######??### # #???? | | ????????????????????????#####??????????# ###???? | | ????????????????????????????????????????####?????? | | ?????????????????????????????????????????????????? | | ?????????????????????????????????????????????????? | | ?????????????????????????????????????????????????? | | ?????????????????????????????????????????????????? | | ?????????????????????????????????????????????????? | | ?????????????????????????????????????????????????? | | ?????????????????????????????????????????????????? | | ?????????????????????????????????????????????????? | | ?????????????????????????????????????????????????? | | ?????????????????????????????????????????????????? | | ?????????????????????????????????????????????????? | | ?????????????????????????????????????????????????? | | ?????????????????????????????????????????????????? | | ?????????????????????????????????????????????????? | | ?????????????????????????????????????????????????? | | | | | | | | | | | | | | | +----------------------------------------------------+ Best States ------------- Heat Dissipation 67 Energy Generation 39 Energy Capacity 565 Matter Stores 300 Matter Capacity 300 Sight Range 16 Robot Scan Range 16 Terrain Scan Density 10 Jamming Range 12 Armor Coverage 450 Resistance: KI 45 Resistance: TH 20 Resistance: EX 20 Resistance: EM 20 Resistance: I 20 Resistance: S 20 Resistance: P 20 Core Shielding 20 Weapon Cycling 15 Evasion (%) 50 Targeting Accuracy 8 Target Analysis 6 Core Analysis 6 Recoil Reduction 4 Energy Filtering 30 Offensive Hacking 42 Item Schematics ----------------- Hcp. Battery | -9/Materials | Scanalyzed Grenade Launcher | -9/Materials | Scanalyzed Hcp. Storage Unit | -9/Materials | Scanalyzed Arm. Treads | -8/Materials | Scanalyzed Lrn. Proton Cannon | -5/Factory | Scanalyzed KE Penetrator | -5/Factory | Scanalyzed Antigrav Array | -5/Extension | Hacked Adv. Force Field | -5/Extension | Hacked Mic. Fission Core | -5/Extension | Hacked Robot Schematics ------------------ None Fabricated ------------ Arm. Treads | x2 | -5/Factory Alien Tech Used ----------------- None Achievements -------------- None Challenges ------------ None Game ------ Seed WarpCoolantStatue Manual? 0 Play Time 01:54:32 Cumulative 259.5 hours Start 2024.08.10 @ 20:38:09 End 2024.08.10 @ 23:26:34 Sessions 1 Manual Loads 0 Difficulty Adventurer Special Mode None Game No. 193 Rogue 63 Adventurer 104 Explorer 26 Win Type - Total 1 Types 1/0/0/0/0/0/0/0/0 Lore% 59 Gallery% 68 Achievement% 68 Wizard Run 0 Options --------- Layout 2 ASCII 0 Keyboard 0 Movement Arrows Keybinds 0 Fullscreen 0 Font 18/CogNarrow Map View 64x51 Zoom Use 0% Tactical HUD 1 Map Filters NONE Filters BRIGHTNESS(115)|SATURATION(100)|LOW_CONTRAST(0,16,30) Steam 1 RUN: 73b1e0fb-6132-4f4c-933f-46804fe9f354